lending/lending_fUSD_20241124
["ID","MTS","AMOUNT","RATE_DAILY","PERIOD"]
[343179796,1732410637455,-106.98817672,0.0004725,2]
[343179797,1732410637465,-148.19418525,0.00048367,2]
[343179798,1732410637507,-333.37312191,0.00048367,2]
[343179799,1732410637571,-5595.96635357,0.00048367,2]
[343179800,1732410637582,-25068.88279115,0.00048367,2]
[343179801,1732410637691,-439.40916133,0.00048366,21]
[343179802,1732410637700,-697.54034804,0.00048367,2]
[343179803,1732410637713,-2487.31180239,0.00048367,2]
[343179804,1732410637724,-3170.49515212,0.00048367,2]
[343179805,1732410637755,-1202.37458605,0.00048367,2]
[343179806,1732410637765,-684.3000014,0.00048367,2]
[343179807,1732410637821,-440.0,0.00047269,2]
[343179808,1732410637832,-60.0,0.00047269,2]
[343179809,1732410637842,-902.307125,0.00048367,2]
[343179818,1732410639368,-190.91777073,0.00048366,30]
[343179819,1732410639377,-500.0,0.00048366,30]
[343179820,1732410639386,-489.62966323,0.00048367,2]
[343179821,1732410639398,-2482.6466518,0.00048367,2]
[343179822,1732410639677,-13103.38735418,0.00048367,2]
[343179823,1732410639688,-1157.10499954,0.00048367,2]
[343179824,1732410639699,-684.812,0.00048367,2]
[343179827,1732410642780,-253.30961025,0.00048366,30]
[343179828,1732410642841,-1192.20706,0.00048366,30]
[343179829,1732410642958,-227.36332975,0.00048366,30]
[343179830,1732410642967,-500.0,0.00048366,30]
[343179831,1732410642976,-3137.08194087,0.00048367,2]
[343179832,1732410643078,-2189.94562217,0.00048367,2]
[343179833,1732410643144,-3856.46021485,0.00048367,2]
[343179834,1732410643153,-1034.53978515,0.00048367,2]
[343179838,1732410645505,-500.0,0.00048366,30]
[343179839,1732410645515,-500.0,0.00048366,30]
[343179840,1732410645524,-500.0,0.00048366,30]
[343179841,1732410645534,-2455.11741485,0.00048367,2]
[343179842,1732410645544,-5081.5834,0.00048367,2]
[343179843,1732410645553,-1000.0,0.00048367,2]
[343179844,1732410645563,-285.69522301,0.00048367,30]
[343179845,1732410645572,-325.98498989,0.00048389,2]
[343179846,1732410645582,-168.16195064,0.00048399,32]
[343179847,1732410645592,-1000.0,0.000484,17]
[343179848,1732410645601,-550.0,0.000484,7]
[343179849,1732410645611,-160.62220229,0.00048473,10]
[343179850,1732410645620,-500.0,0.00048488,30]
[343179851,1732410645629,-620.23125996,0.00048488,30]
[343179852,1732410645638,-500.0,0.00048488,30]
[343179853,1732410645648,-246.51503142,0.00048488,120]
[343179854,1732410645833,-4810.54,0.00048488,30]
[343179855,1732410645844,-500.0,0.00048488,30]
[343179856,1732410645853,-500.0,0.00048488,30]
[343179857,1732410645863,-500.0,0.00048488,30]
[343179858,1732410645873,-500.0,0.00048488,30]
[343179859,1732410645882,-500.0,0.00048488,30]
[343179860,1732410645892,-500.0,0.00048488,30]
[343179861,1732410645901,-500.0,0.00048488,30]
[343179862,1732410645911,-500.0,0.00048488,30]
[343179864,1732410645923,-1303.29,0.00048488,30]
[343179866,1732410645933,-500.0,0.00048488,30]
[343179867,1732410645943,-500.0,0.00048488,30]
[343179869,1732410645953,-500.0,0.00048488,30]
[343179871,1732410645964,-500.0,0.00048488,30]
[343179872,1732410645974,-644.53,0.00048488,30]
[343179873,1732410645983,-500.0,0.00048488,30]
[343179874,1732410645992,-7715.08,0.00048488,30]
[343179875,1732410646002,-500.0,0.00048488,30]
[343179876,1732410646011,-319.11,0.00048488,30]
[343179877,1732410646020,-500.0,0.00048488,2]
[343179878,1732410646035,-500.0,0.00048488,30]
[343179879,1732410646046,-500.0,0.00048488,30]
[343179880,1732410646055,-500.0,0.00048488,30]
[343179881,1732410646065,-1579.20231187,0.00048489,120]
[343179882,1732410646075,-33821.16471607,0.00048489,120]
[343179883,1732410646101,-500.0,0.00048488,30]
[343179884,1732410646110,-143183.66578573,0.00048489,120]
[343179885,1732410646119,-35805.4975402,0.00048489,8]
[343179886,1732411508386,48124.33131514,0.00013,2]
[343179887,1732411508424,64718.22269172,0.00013,2]
[343179888,1732411508454,7955.0,0.00013,2]
[343179889,1732411508482,136301.16863221,0.00013,2]
[343179890,1732411532834,973.64307556,0.00024,2]
[343179891,1732411548659,296.6660306,0.0002,2]
[343179892,1732411589739,627.25298576,0.00024,2]
[343179893,1732411589863,308.47568626,0.00015,2]
[343179894,1732411599508,229.28055575,0.0002211,2]
[343179895,1732411629002,2143.52813322,0.000225,2]
[343179896,1732411669671,3811.24501578,0.0002,2]
[343179897,1732411687030,3950.0,0.0002,2]
[343179898,1732411688349,952.48276471,0.00023922,2]
[343179904,1732411722674,4479.50440403,0.0002152,2]
[343179929,1732411831797,-183.04,0.00041096,2]
[343179930,1732411831808,-167.431944,0.000428,30]
[343179931,1732411831819,-880.82,0.00045484,2]
[343179933,1732411831829,-183.04,0.00046143,2]
[343179935,1732411831838,-150.45,0.00046863,2]
[343179936,1732411831847,-250.0,0.00047062,120]
[343179937,1732411831856,-250.0,0.00047069,120]
[343179938,1732411831866,-16956.7,0.00047071,63]
[343179939,1732411831875,-250.0,0.00047078,120]
[343179940,1732411831885,-550.0,0.00047101,5]
[343179941,1732411831894,-23900.0,0.00047102,2]
[343179942,1732411831904,-259.07,0.00047112,120]
[343179943,1732411831914,-1000.0,0.00047146,2]
[343179944,1732411831924,-158.56,0.00047242,2]
[343179945,1732411831933,-175.4,0.00047326,2]
[343179946,1732411831943,-500.0,0.0004746,2]
[343179947,1732411831954,-150.99,0.0004746,2]
[343179948,1732411831965,-3279.4,0.0004746,2]
[343179949,1732411831975,-1704.96,0.0004746,2]
[343179950,1732411831985,-1000.0,0.000475,17]
[343179951,1732411831995,-163.37,0.00047501,120]
[343179952,1732411832004,-2000.0,0.000476,17]
[343179953,1732411832013,-152.0,0.00047683,3]
[343179954,1732411832023,-530.447,0.00047683,81]
[343179955,1732411832035,-3000.0,0.000477,17]
[343179956,1732411832045,-880.82,0.00047748,2]
[343179957,1732411832055,-4000.0,0.000478,17]
[343179958,1732411832064,-2582.60628137,0.000479,17]
[343179959,1732411832090,-2417.39371863,0.000479,17]
[343179960,1732411832099,-266.72644836,0.00048,2]
[343179961,1732411832157,-435.8,0.00048,2]
[343179962,1732411832168,-989.51059447,0.00048,2]
[343179963,1732411832178,-2377.60670553,0.00048266,2]
[343179964,1732411832189,-2066.80193497,0.00048266,2]
[343179965,1732411832201,-1646.0951595,0.00048266,2]
[343179966,1732411832211,-1000.0,0.00048267,2]
[343179967,1732411832220,-3060.61507566,0.000483,15]
[343179968,1732411832230,-1000.0,0.000483,7]
[343179969,1732411832239,-503.24788761,0.00048366,30]
[343179970,1732411832248,-310.83477247,0.00048366,30]
[343179971,1732411832260,-284.18577664,0.00048366,30]
[343179972,1732411832270,-183.24305612,0.00048366,30]
[343179973,1732411832279,-500.0,0.00048366,30]
[343179974,1732411832288,-219.05490662,0.00048366,30]
[343179975,1732411832311,-283.9904824,0.00048366,30]
[343179976,1732411832321,-500.0,0.00048366,30]
[343179977,1732411832330,-500.0,0.00048366,30]
[343179979,1732411832339,-249.87720765,0.00048366,30]
[343179981,1732411832351,-250.12279235,0.00048366,30]
[343179983,1732411832360,-503.48462366,0.00048366,30]
[343179985,1732411832369,-162.24975843,0.00048366,30]
[343179987,1732411832379,-500.0,0.00048366,30]
[343179989,1732411832388,-502.31677813,0.00048366,30]
[343179991,1732411832398,-500.0,0.00048366,30]
[343179993,1732411832408,-500.0,0.00048366,30]
[343179994,1732411832418,-500.0,0.00048366,30]
[343179995,1732411832428,-500.0,0.00048366,30]
[343179996,1732411832438,-258.75716438,0.00048366,30]
[343179997,1732411832448,-646.37753346,0.00048366,30]
[343179998,1732411832464,-500.0,0.00048366,2]
[343179999,1732411832474,-139.47187632,0.00048366,30]
[343180000,1732411832502,-362.52612526,0.00048366,30]
[343180001,1732411832511,-502.31389126,0.00048366,30]
[343180002,1732411832521,-500.0,0.00048366,30]
[343180003,1732411832531,-42.22111151,0.00048366,30]
[343180004,1732411832542,-457.77888849,0.00048366,30]
[343180005,1732411832552,-489.53126585,0.00048366,30]
[343180006,1732411832564,-10.46873415,0.00048366,30]
[343180007,1732411832574,-549.98111252,0.00048366,30]
[343180008,1732411832584,-500.0,0.00048366,30]
[343180009,1732411832594,-500.0,0.00048366,30]
[343180010,1732411832604,-500.0,0.00048366,30]
[343180011,1732411832614,-500.0,0.00048366,30]
[343180012,1732411832624,-500.0,0.00048366,30]
[343180013,1732411832634,-500.0,0.00048366,30]
[343180014,1732411832643,-500.0,0.00048366,30]
[343180015,1732411832653,-500.0,0.00048366,30]
[343180016,1732411832663,-500.0,0.00048366,30]
[343180017,1732411832673,-500.0,0.00048366,30]
[343180018,1732411832683,-279.38147838,0.00048366,30]
[343180019,1732411832692,-500.05021336,0.00048366,30]
[343180020,1732411832703,-500.0,0.00048366,30]
[343180021,1732411832712,-500.0,0.00048366,30]
[343180022,1732411832722,-500.0,0.00048366,30]
[343180023,1732411832732,-500.0,0.00048366,30]
[343180024,1732411832743,-500.0,0.00048366,30]
[343180025,1732411832753,-500.0,0.00048366,30]
[343180026,1732411832763,-500.0,0.00048366,30]
[343180027,1732411832773,-500.0,0.00048366,30]
[343180028,1732411832782,-500.0,0.00048366,30]
[343180029,1732411832792,-500.0,0.00048366,30]
[343180030,1732411832802,-500.0,0.00048366,30]
[343180031,1732411832811,-500.0,0.00048366,30]
[343180032,1732411832821,-500.0,0.00048366,30]
[343180033,1732411832831,-500.0,0.00048366,30]
[343180034,1732411832840,-500.0,0.00048366,30]
[343180035,1732411832850,-500.0,0.00048366,30]
[343180036,1732411832860,-500.0,0.00048366,30]
[343180037,1732411832870,-500.0,0.00048366,30]
[343180038,1732411832879,-500.0,0.00048366,30]
[343180039,1732411832889,-500.0,0.00048366,30]
[343180040,1732411832899,-800.77,0.00048366,30]
[343180041,1732411832909,-500.0,0.00048366,30]
[343180042,1732411832919,-500.0,0.00048366,30]
[343180043,1732411832928,-500.0,0.00048366,30]
[343180044,1732411832938,-500.0,0.00048366,30]
[343180045,1732411832948,-500.0,0.00048366,30]
[343180046,1732411832959,-500.0,0.00048366,30]
[343180047,1732411832969,-500.0,0.00048366,30]
[343180048,1732411832978,-500.0,0.00048366,30]
[343180049,1732411832989,-500.0,0.00048366,30]
[343180050,1732411832998,-500.0,0.00048366,30]
[343180051,1732411833008,-500.0,0.00048366,30]
[343180052,1732411833018,-500.0,0.00048366,30]
[343180053,1732411833031,-501.09,0.00048366,30]
[343180054,1732411833047,-599.94,0.00048366,30]
[343180055,1732411833057,-500.0,0.00048366,30]
[343180056,1732411833067,-500.0,0.00048366,30]
[343180057,1732411833077,-500.0,0.00048366,30]
[343180058,1732411833087,-500.0,0.00048366,30]
[343180059,1732411833097,-500.0,0.00048366,30]
[343180060,1732411833107,-500.0,0.00048366,30]
[343180061,1732411833118,-500.0,0.00048366,30]
[343180062,1732411833128,-458.65233454,0.00048366,30]
[343180063,1732411833138,-500.0,0.00048366,30]
[343180064,1732411833148,-191.62598472,0.00048366,30]
[343180065,1732411833158,-500.0,0.00048366,30]
[343180066,1732411833172,-598.48,0.00048366,30]
[343180067,1732411833182,-570.5,0.00048366,30]
[343180068,1732411833192,-500.0,0.00048366,30]
[343180069,1732411833206,-500.0,0.00048366,30]
[343180070,1732411833216,-500.0,0.00048366,30]
[343180071,1732411833226,-500.0,0.00048366,30]
[343180072,1732411833237,-500.0,0.00048366,30]
[343180073,1732411833250,-500.0,0.00048366,30]
[343180074,1732411833261,-500.0,0.00048366,30]
[343180075,1732411833271,-500.0,0.00048366,30]
[343180076,1732411833281,-500.0,0.00048366,120]
[343180077,1732411833291,-500.0,0.00048366,30]
[343180078,1732411833301,-500.0,0.00048366,30]
[343180079,1732411833313,-500.0,0.00048366,30]
[343180080,1732411833323,-6611.62151521,0.00048373,15]
[343180081,1732411833333,-172.48307937,0.00048387,28]
[343180082,1732411833343,-4820.6873,0.00048389,2]
[343180083,1732411833353,-168.16195064,0.00048397,32]
[343180084,1732411833364,-150.11241,0.00048398,120]
[343180085,1732411833375,-11515.99387792,0.00048398,2]
[343180086,1732411833388,-29997.4580521,0.00048398,2]
[343180091,1732411838169,-500.0,0.00047112,120]
[343180092,1732411838179,-1940.00240673,0.00048298,2]
[343180108,1732411839973,-500.0,0.00047326,2]
[343180109,1732411839983,-8.02400198,0.00048298,2]
[343180110,1732411840155,-359.15206921,0.00048298,2]
[343180113,1732411842860,-918.14532208,0.00048298,2]
[343180114,1732411842871,-633.21467792,0.00048398,2]
[343180115,1732411842883,-369.04840763,0.00048398,2]
[343180116,1732411843024,-792.09697781,0.00048398,2]
[343180117,1732411843036,-152.0251749,0.00048398,120]
[343180118,1732411843046,-3707.69783993,0.00048458,30]
[343180119,1732411843058,-503.91966623,0.00048458,30]
[343180120,1732411843067,-837.74673292,0.0004847,2]
[343180121,1732411843080,-1170.00004,0.0004847,2]
[343180123,1732411843188,-18107.50648275,0.0004847,2]
[343180125,1732411843201,-3725.02522824,0.0004847,2]
[343180141,1732411845823,-160.98674659,0.00038,120]
[343180142,1732411845832,-2287.33825341,0.0004847,2]
[343180143,1732411845843,-3008.599228,0.0004847,2]
[343180144,1732411845987,-11263.32612977,0.0004847,2]
[343180145,1732411845998,-11772.95709027,0.0004847,2]
[343180146,1732411913997,217.98,0.00035,2]
[343180149,1732412442671,150.0,0.000352,5]
[343180150,1732412459769,2013.0,0.00035,90]
[343180152,1732412572171,2000.8,0.00035,30]
[343180162,1732413031856,-160.98674659,0.0004,120]
[343180164,1732413031867,-151.0,0.0004,2]
[343180168,1732413031879,-1186.71242712,0.00041,120]
[343180170,1732413032217,-692.19895833,0.00041,120]
[343180171,1732413032229,-932.62286945,0.00041,120]
[343180172,1732413032318,-17188.4657451,0.00041,120]
[343180173,1732413032327,-159.06,0.00041096,2]
[343180174,1732413032337,-154.91,0.00041096,2]
[343180175,1732413032346,-20000.0,0.00042,120]
[343180176,1732413032356,-321.97349318,0.00043,120]
[343180177,1732413032365,-866.62,0.0004504,2]
[343180178,1732413032376,-402.46686647,0.00046,120]
[343180179,1732413032389,-10000.0,0.00046,120]
[343180180,1732413032398,-176.46644145,0.00046556,120]
[343180181,1732413032408,-157.38,0.00046656,2]
[343180182,1732413032418,-285.71,0.00046702,7]
[343180183,1732413032428,-757.38,0.00046702,7]
[343180184,1732413032437,-5000.0,0.0004679,120]
[343180185,1732413032446,-2456.95,0.00046808,2]
[343180186,1732413032456,-7900.17,0.00046808,30]
[343180187,1732413032466,-23900.0,0.00046841,2]
[343180188,1732413032475,-1500.0,0.00046844,120]
[343180189,1732413032485,-250.0,0.00046908,120]
[343180190,1732413032496,-250.0,0.00046916,120]
[343180191,1732413032506,-163.9,0.00046923,2]
[343180192,1732413032516,-500.0,0.00046928,2]
[343180193,1732413032526,-1000.0,0.00046937,2]
[343180194,1732413032535,-250.0,0.00046947,120]
[343180195,1732413032545,-193.07230836,0.00047002,28]
[343180196,1732413032555,-157.9468,0.00047044,7]
[343180197,1732413032564,-500.0,0.00047073,2]
[343180198,1732413032574,-440.415,0.00047093,79]
[343180199,1732413032583,-57901.60621946,0.000471,8]
[343180200,1732413038276,-172.56584563,0.00047099,120]
[343180201,1732413038286,-326.35146381,0.00047099,31]
[343180202,1732413038295,-17.16269056,0.000471,8]
[343180220,1732413040186,-319.65,0.000471,8]
[343180221,1732413040199,-1370.84123269,0.000471,8]
[343180225,1732413043227,-301.41935341,0.000471,8]
[343180226,1732413043239,-3162.63919521,0.000471,8]
[343180227,1732413043252,-1897.47881356,0.000471,8]
[343180228,1732413043264,-1065.34948235,0.000471,8]
[343180229,1732413043275,-4660.063191,0.000471,8]
[343180230,1732413043287,-726.25936877,0.000471,8]
[343180231,1732413043298,-2013.0847452,0.000471,8]
[343180237,1732413046137,-83314.83849711,0.000471,8]
[343180238,1732413356455,753.0,0.000264,2]
[343180239,1732413357096,678.0,0.000264,2]
[343180266,1732414232117,-154.29,0.00041096,2]
[343180267,1732414232127,-152.0,0.00042806,3]
[343180268,1732414232136,-823.28,0.00043683,2]
[343180269,1732414232152,-651.2276252,0.00043987,2]
[343180270,1732414232163,-490.42092061,0.00044416,2]
[343180271,1732414232172,-152.0,0.00044516,4]
[343180273,1732414232182,-219.35065432,0.000447,2]
[343180274,1732414232193,-271.07026627,0.000447,2]
[343180275,1732414232203,-81.90678766,0.00044799,5]
[343180276,1732414232215,-468.09321234,0.00044799,5]
[343180277,1732414232224,-19108.22623039,0.000448,8]
[343180278,1732414232236,-2059.88196035,0.000448,8]
[343180279,1732414232248,-4580.14316661,0.000448,8]
[343180280,1732414232344,-331772.67316676,0.000448,8]
[343180292,1732414238072,-39031.71538624,0.000448,8]
[343180299,1732414240305,-8789.19108186,0.000448,8]
[343180311,1732414243905,-500.0,0.00044773,2]
[343180312,1732414243915,-8783.31523992,0.000448,8]
[343180313,1732414243927,-2107.82458566,0.000448,8]
[343180318,1732414246252,-667677.70744504,0.000448,8]
[343180319,1732414246263,-13181.06472365,0.000448,8]
[343180320,1732414246276,-4364.07221797,0.000448,8]
[343180323,1732414663480,250.0,0.00031,2]
[343180324,1732414664611,300.0,0.00033,2]
[343180325,1732414665746,350.0,0.00035,2]
[343180326,1732414712317,11847.9876629,0.00035,2]
[343180329,1732415151801,1524.40134915,9.99e-05,2]
[343180330,1732415315318,1562.23526906,0.000245,4]
[343180332,1732415319677,2465.69285477,0.0002421,2]
[343180362,1732415432307,-400.0,0.00037,2]
[343180363,1732415432316,-1885.541368,0.00039201,2]
[343180364,1732415432328,-113.932813,0.00039201,2]
[343180365,1732415432337,-221.90510724,0.00039399,5]
[343180372,1732415432479,-178.09489276,0.00039399,5]
[343180373,1732415432489,-121.90510724,0.000394,120]
[343180374,1732415432500,-1520.25,0.000394,120]
[343180375,1732415432674,-2611.06878522,0.000394,120]
[343180376,1732415432685,-1064.44833044,0.000394,120]
[343180388,1732415438295,-3650.02990591,0.000394,120]
[343180389,1732415438306,-157.67652115,0.0004,32]
[343180390,1732415438315,-173.37759505,0.0004,120]
[343180391,1732415438324,-164.73,0.00041096,2]
[343180392,1732415438333,-159.06,0.00041096,2]
[343180393,1732415438342,-560.0,0.00042052,5]
[343180394,1732415438351,-862.65,0.00042099,2]
[343180395,1732415438359,-366.0,0.00042604,30]
[343180396,1732415438368,-250.0,0.00043366,120]
[343180397,1732415438376,-250.0,0.0004348,2]
[343180398,1732415438385,-1717.26765152,0.000435,2]
[343180399,1732415438395,-1830.26829808,0.000435,2]
[343180400,1732415438404,-150.99,0.000435,2]
[343180401,1732415438412,-300.12,0.000435,2]
[343180402,1732415438421,-1341.95,0.000435,2]
[343180403,1732415438430,-250.0,0.00043589,2]
[343180404,1732415438439,-391.72,0.00043633,120]
[343180405,1732415438448,-374.72870508,0.00043639,2]
[343180406,1732415438478,-625.27129492,0.00043639,2]
[343180407,1732415438487,-3262.0792549,0.00043653,2]
[343180408,1732415438499,-2455.27283116,0.00043653,2]
[343180409,1732415438510,-491.24899399,0.00043653,2]
[343180410,1732415438521,-1090.74995,0.00043653,2]
[343180411,1732415438587,-500.0,0.00041096,2]
[343180412,1732415438597,-596.49531456,0.00043653,2]
[343180417,1732415440391,-2034.979,0.00043653,2]
[343180418,1732415440403,-1211.6925432,0.00043653,2]
[343180419,1732415440494,-264.39150041,0.00043653,2]
[343180420,1732415440505,-2237.43169542,0.00043653,2]
[343180421,1732415440517,-303.81500005,0.00043653,2]
[343180422,1732415440528,-253.94130098,0.00043653,2]
[343180515,1732415443258,-4078.17959876,0.00043653,2]
[343180516,1732415443268,-1984.95716252,0.00043653,2]
[343180519,1732415443453,-3634.76585405,0.00043653,2]
[343180520,1732415443460,-198.93,0.00043713,2]
[343180521,1732415443468,-150.59,0.00043865,2]
[343180522,1732415443476,-315.42139373,0.00044,2]
[343180523,1732415443790,-684.7936473,0.00044,2]
[343180524,1732415443800,-352.332,0.00044028,69]
[343180525,1732415443811,-155.2,0.00044028,120]
[343180526,1732415443820,-150.0,0.0004436,2]
[343180527,1732415443830,-862.65,0.00044363,2]
[343180528,1732415443839,-764.08244958,0.00044394,2]
[343180529,1732415443852,-813.34755042,0.00044394,2]
[343180530,1732415443862,-279.488296,0.00044699,14]
[343180531,1732415443872,-461.61074857,0.00044699,5]
[343180532,1732415443882,-15921.63901284,0.00044699,5]
[343180539,1732415446647,-2758.3,0.00044699,5]
[343180540,1732415446659,-1632.22639546,0.00044699,5]
[343180541,1732415446671,-843.31252388,0.00044699,5]
[343180542,1732415446682,-329.23531673,0.00044699,5]
[343180543,1732415446694,-3037.168543,0.00044699,5]
[343180546,1732415951272,66481.82686412,0.0002,2]
[343180547,1732415951300,33552.65711936,0.0002,2]
[343180550,1732416305519,150.0,0.00034548,10]
[343180551,1732416332025,30000.0,0.0003,2]
[343180552,1732416469656,250.0,0.00031,2]
[343180560,1732416580422,5744.1593565,0.0003,3]
[343180570,1732416632465,-377.0,0.0004,120]
[343180571,1732416632476,-155.14,0.00041096,2]
[343180572,1732416632486,-154.29,0.00041096,2]
[343180574,1732416632496,-804.41,0.00041583,2]
[343180576,1732416632506,-200.0,0.00042,120]
[343180577,1732416632515,-314.36139994,0.000427,2]
[343180578,1732416632526,-119.7903502,0.000427,2]
[343180579,1732416632535,-262.60192172,0.00042799,65]
[343180580,1732416632706,-19.26407828,0.00042799,65]
[343180581,1732416632716,-550.0,0.00042799,5]
[343180582,1732416632725,-58.41557512,0.000428,60]
[343180583,1732416632933,-699.345865,0.000428,60]
[343180584,1732416632953,-1098.09,0.000428,60]
[343180585,1732416632965,-1396.39506,0.000428,60]
[343180599,1732416639099,-449.30730478,0.000428,60]
[343180631,1732416640526,-693.1731734,0.000428,60]
[343180632,1732416640538,-1471.40003,0.000428,60]
[343180651,1732416644620,-382.92113158,0.000428,60]
[343180652,1732416644634,-3383.19987872,0.000428,60]
[343180653,1732416644647,-4483.2672923,0.000428,60]
[343180655,1732416644875,-19737.3481891,0.000428,60]
[343180656,1732416644886,-500.0,0.000428,60]
[343180657,1732416644896,-434.15175012,0.00043054,2]
[343180658,1732416644906,-250.0,0.00043143,120]
[343180659,1732416644916,-156.05,0.00043167,120]
[343180660,1732416644926,-272.75,0.0004328,2]
[343180661,1732416644936,-250.0,0.00043394,2]
[343180662,1732416644946,-434.15175012,0.00043407,2]
[343180663,1732416644957,-263.15,0.00043411,2]
[343180664,1732416644967,-1000.0,0.00043446,2]
[343180665,1732416644976,-266.96430769,0.00043454,2]
[343180666,1732416644989,-12848.10139249,0.00043454,2]
[343180670,1732416646799,-2250.75,0.00043454,2]
[343180671,1732416646811,-375.5245498,0.00043454,2]
[343180686,1732416794314,-945.19,0.00043507,120]
[343180687,1732416794338,-155.2,0.00043601,120]
[343180688,1732416794364,-550.0,0.00043638,5]
[343180689,1732416794387,-8349.61,0.00043798,5]
[343180699,1732416970170,610.0,0.000265,2]
[343180700,1732416970970,549.0,0.000265,2]
[343180704,1732417086378,800.0,0.00026986,120]
[343180705,1732417203088,800.0,0.00026986,120]
[343180706,1732417306123,1000.0,0.00035,2]
[343180707,1732417453630,742.9691987,0.00035,7]
[343180710,1732417628922,600.36057442,0.00032,2]
[343180731,1732417831939,-5000.0,0.00038069,2]
[343180732,1732417831949,-369.798,0.0004107,120]
[343180733,1732417831959,-164.35,0.00041096,2]
[343180734,1732417831968,-764.18,0.00041169,2]
[343180735,1732417831978,-168.77511439,0.000419,2]
[343180736,1732417831991,-258.56069181,0.00042,2]
[343180737,1732417832001,-1000.0,0.00042,120]
[343180738,1732417832010,-300.0,0.00042,2]
[343180739,1732417832019,-300.0,0.00042,5]
[343180740,1732417832029,-152.0,0.00042575,3]
[343180741,1732417832038,-35922.33459953,0.00042682,2]
[343180742,1732417832050,-4077.66540047,0.00042682,2]
[343180743,1732417832060,-250.0,0.0004276,2]
[343180744,1732417832069,-207.25,0.0004279,120]
[343180745,1732417832079,-1000.0,0.000428,30]
[343180746,1732417832089,-1000.0,0.000428,60]
[343180747,1732417832099,-212.17,0.00042907,2]
[343180748,1732417832108,-8627.82577552,0.00042935,2]
[343180760,1732417840136,-969.5140675,0.00042935,2]
[343180785,1732417844274,-5348.56209741,0.00042935,2]
[343180786,1732417844286,-5930.18399961,0.00042935,2]
[343180787,1732417844297,-2881.39134417,0.00042935,2]
[343180788,1732417844310,-142.52271579,0.00042935,2]
[343180789,1732417844319,-500.0,0.00042935,2]
[343180790,1732417844329,-250.0,0.00042981,120]
[343180791,1732417844338,-300.0,0.00043,3]
[343180792,1732417844348,-150.0,0.00043044,2]
[343180793,1732417844357,-1000.0,0.00043124,2]
[343180794,1732417844366,-250.0,0.00043305,2]
[343180795,1732417844376,-225.493,0.00043305,67]
[343180796,1732417844386,-1500.0,0.00043335,120]
[343180797,1732417844395,-255.09,0.00043411,2]
[343180798,1732417844404,-764.18,0.00043432,2]
[343180799,1732417844414,-2048.9,0.000435,60]
[343180800,1732417844423,-168.77511438,0.00043698,2]
[343180801,1732417844433,-574.13,0.00043698,2]
[343180802,1732417844442,-574.13,0.00043698,2]
[343180803,1732417844452,-574.13,0.00043698,2]
[343180804,1732417844461,-574.13,0.00043698,2]
[343180805,1732417844470,-574.13,0.00043698,2]
[343180806,1732417844480,-574.13,0.00043698,2]
[343180807,1732417844488,-574.13,0.00043698,2]
[343180808,1732417844498,-574.13,0.00043698,2]
[343180809,1732417844507,-574.13,0.00043698,2]
[343180810,1732417844516,-574.13,0.00043698,2]
[343180811,1732417844525,-2000.0,0.000437,15]
[343180812,1732417844535,-6871.55619598,0.00043798,5]
[343180814,1732417844546,-6037.01120016,0.00043798,5]
[343180816,1732417844557,-1581.11865159,0.00043798,5]
[343180818,1732417844568,-329.07847027,0.00043798,5]
[343180906,1732417845734,-577.8531084,0.00043798,5]